bitfinex-derivatives/quotes_ETHF0:USTF0_20250308
["timestamp","ask_amount","ask_price","bid_price","bid_amount"]
[1741417954970,0.93207,2146.0,2145.7,7.61124]
[1741417955267,1.9377,2146.4,2145.8,0.93208]
[1741417955474,0.93204,2146.0,2145.8,1.05208]
[1741417955670,0.93204,2146.0,2145.8,0.12]
[1741417956063,0.93208,2145.9,2145.8,0.12]
[1741417959767,0.93208,2145.9,2145.8,3.3278]
[1741417962474,0.93208,2145.9,2145.8,3.2078]
[1741417963067,0.6579,2146.0,2145.5,0.00699676]
[1741417963264,4.14001,2145.6,2145.5,0.00699676]
[1741417963573,0.93243,2145.1,2145.0,13.2078]
[1741417963773,1.9102,2145.5,2145.0,13.6178]
[1741417963969,0.93235,2145.3,2145.0,14.55023]
[1741417964167,1.9102,2145.5,2145.0,13.6178]
[1741417964370,0.93231,2145.4,2145.2,0.93237]
[1741417964569,0.93231,2145.4,2145.2,0.98237]
[1741417964770,0.93231,2145.4,2145.3,0.6472]
[1741417967576,1.91719676,2145.5,2145.0,14.14725676]
[1741417967881,0.93242,2145.2,2145.0,14.31469676]
[1741417968074,1.91719676,2145.5,2145.0,14.31469676]
[1741417968373,0.93243,2145.1,2145.0,14.31469676]
[1741417968575,0.93243,2145.1,2145.0,10.00699676]
[1741417969067,5.2118,2145.2,2144.5,19.6579]
[1741417969268,0.93264,2144.6,2144.5,19.018]
[1741417969480,5.53909,2144.9,2144.4,3.2078]
[1741417969481,0.93269,2144.5,2144.4,3.2078]
[1741417969674,0.93269,2144.5,2144.4,3.3878]
[1741417969980,0.93269,2144.5,2144.4,3.2078]
[1741417973181,1.2664,2144.7,2144.4,3.2078]
[1741417973473,0.93266,2144.6,2144.4,4.14053]
[1741417973677,0.93266,2144.6,2144.4,3.2078]
[1741417973873,1.2664,2144.7,2144.4,3.2078]
[1741417974074,0.93269,2144.5,2144.4,3.2078]
[1741417975076,0.93267,2144.6,2144.4,3.2078]
[1741417975282,1.2664,2144.7,2144.4,3.2078]
[1741417975781,0.93264,2144.6,2144.4,3.2078]
[1741417975982,0.93269,2144.5,2144.4,3.2078]
[1741417976779,1.2664,2144.7,2144.2,0.00699676]
[1741417977081,0.93277,2144.3,2144.2,0.26699676]
[1741417977483,0.93277,2144.3,2144.2,0.00699676]
[1741417978379,2.18847,2144.3,2144.2,0.00699676]
[1741417978683,0.93277,2144.3,2144.2,0.00699676]
[1741417980079,2.617,2144.4,2144.2,0.93978676]
[1741417980384,2.005,2144.7,2144.3,3.2078]
[1741417980571,0.93273,2144.4,2144.3,3.2078]
[1741417981182,0.6099,2144.6,2144.3,3.2078]
[1741417981381,0.93273,2144.4,2144.3,3.2078]
[1741417981987,0.93273,2144.4,2144.2,0.93981676]
[1741417982281,0.93273,2144.4,2144.2,0.98981676]
[1741417982988,0.6099,2144.6,2144.3,3.2078]
[1741417983185,0.6099,2144.6,2144.4,1.9171]
[1741417983385,0.93269,2144.5,2144.4,1.9171]
[1741417983683,0.6099,2144.6,2144.4,1.9171]
[1741417983984,0.93269,2144.5,2144.4,1.9171]
[1741417984185,0.93269,2144.5,2144.4,1.2796]
[1741417984388,0.93269,2144.5,2144.4,0.6468]
[1741417984584,0.6099,2144.6,2144.2,0.00699676]
[1741417984889,0.93277,2144.3,2144.2,0.71929676]
[1741417985183,0.93277,2144.3,2144.2,0.00699676]
[1741417985686,0.93277,2144.3,2143.7,22.2288]
[1741417985687,6.005,2144.3,2143.7,22.2288]
[1741417985987,0.93298,2143.9,2143.7,24.33181]
[1741417986185,1.9008,2144.2,2143.7,4.3778]
[1741417986387,1.54263,2144.2,2144.0,0.93289]
[1741417986687,0.93289,2144.1,2143.9,0.93294]
[1741417986991,0.93289,2144.1,2143.9,0.93993676]
[1741417987589,0.6098,2144.2,2144.0,0.6523]
[1741417987991,0.6098,2144.2,2144.0,2.22116]
[1741417988287,0.6098,2144.2,2144.0,2.83106]
[1741417988485,1.54262,2144.2,2144.0,2.83106]
[1741417990090,1.54262,2144.2,2144.0,6.03886]
[1741417990393,0.6098,2144.2,2144.0,6.03888]
[1741417990790,1.54263,2144.2,2144.0,6.03888]
[1741417990992,1.54263,2144.2,2144.0,3.2078]
[1741417991290,2.16673,2144.2,2144.0,3.2078]
[1741417991488,0.93286,2144.1,2144.0,3.2078]
[1741417991889,0.93286,2144.1,2144.0,3.8552]
[1741417992892,0.93286,2144.1,2144.0,4.78811]
[1741417993591,0.93286,2144.1,2144.0,3.8552]
[1741417994193,0.93286,2144.1,2144.0,4.78811]
[1741417994896,0.93286,2144.1,2144.0,3.8552]
[1741417996892,0.93286,2144.1,2144.0,3.9852]
[1741417997088,0.93286,2144.1,2144.0,3.8552]
[1741417997397,0.93286,2144.1,2144.0,0.6474]
[1741417997595,0.93291,2144.0,2143.9,0.00699676]
[1741417999283,2.93791,2144.0,2143.9,0.00699676]
[1741417999795,2.93791,2144.0,2143.5,0.6094]
[1741417999796,0.93308,2143.6,2143.5,0.6094]
[1741417999999,0.93308,2143.6,2143.5,0.6394]
[1741418002298,0.93308,2143.7,2143.5,0.6394]
[1741418002701,0.93308,2143.6,2143.5,0.6394]
[1741418003598,0.93308,2143.6,2143.5,0.03]
[1741418003798,2.33245,2143.9,2143.4,5.1264]
[1741418003998,0.93312,2143.5,2143.4,3.8522]
[1741418004201,0.93317,2143.4,2143.3,0.00699676]
[1741418004498,2.78907,2143.4,2143.3,0.00699676]
[1741418005499,1.54767,2143.4,2143.3,0.00699676]
[1741418013899,0.99067189,2143.4,2143.0,3.8437]
[1741418014104,0.9333,2143.1,2143.0,3.2078]
[1741418015512,2.9393,2143.1,2143.0,3.2078]
[1741418022610,2.006,2143.1,2142.8,0.00699676]
[1741418022802,2.006,2143.1,2142.8,0.18699676]
[1741418023009,0.93338,2142.9,2142.8,0.18699676]
[1741418023808,0.93338,2142.9,2142.8,1.12041676]
[1741418024108,0.93338,2142.9,2142.8,0.18699676]
[1741418027304,0.93338,2142.9,2142.8,0.00699676]
[1741418031607,0.93338,2142.9,2142.8,0.63929676]
[1741418036206,0.93338,2142.9,2142.8,0.00699676]
[1741418037406,2.93938,2142.9,2142.8,0.66349676]
[1741418037815,0.93338,2142.9,2142.8,0.66349676]
[1741418039605,0.93338,2142.9,2142.8,0.00699676]
[1741418040511,2.93938,2142.9,2142.8,0.00699676]
[1741418043219,0.93338,2142.9,2142.8,0.00699676]
[1741418043419,0.93338,2142.9,2142.8,0.65319676]
[1741418044626,2.6592,2143.0,2142.9,0.93338]
[1741418044920,2.93934,2143.0,2142.8,1.95359676]
[1741418045115,2.006,2143.1,2142.8,2.01359676]
[1741418045320,2.93934,2143.1,2142.9,0.93335]
[1741418045525,2.93934,2143.1,2142.9,0.93334]
[1741418046221,0.93336,2143.0,2142.8,2.88698676]
[1741418046419,0.66459676,2143.2,2142.8,2.00359676]
[1741418046614,2.67059676,2143.2,2142.8,2.00359676]
[1741418046818,2.67059676,2143.2,2143.1,0.9333]
[1741418046819,0.00699676,2143.2,2143.1,0.9333]
[1741418047019,0.94024676,2143.2,2143.0,3.2078]
[1741418047219,0.94024676,2143.2,2143.1,0.6063]
[1741418048518,0.00699676,2143.2,2143.1,0.6063]
[1741418049024,0.00699676,2143.2,2143.1,1.5396]
[1741418049418,0.00699676,2143.2,2143.1,1.5496]
[1741418054026,2.006,2143.7,2143.1,0.6163]
[1741418054225,2.93905,2143.7,2143.5,0.93309]
[1741418054426,2.93905,2143.7,2143.6,1.2419]
[1741418054816,2.006,2143.7,2143.6,1.2419]
[1741418055021,2.93904,2143.7,2143.6,1.2419]
[1741418055529,2.93904,2143.7,2143.6,1.9111]
[1741418055829,2.006,2143.7,2143.6,2.84418]
[1741418056126,0.00699676,2143.9,2143.7,0.93302]
[1741418056527,0.93997676,2143.9,2143.7,0.93302]
[1741418057830,0.00699676,2143.9,2143.8,0.93299]
[1741418058030,0.00699676,2143.9,2143.8,0.97299]
[1741418059131,0.00699676,2143.9,2143.8,0.04]
[1741418059428,0.00699676,2143.9,2143.8,0.97299]
[1741418064835,0.00699676,2143.9,2143.8,0.04]
[1741418065126,0.93302,2143.8,2143.6,2.84417]
[1741418065332,0.93302,2143.8,2143.6,3.01417]
[1741418066429,0.00699676,2143.9,2143.6,2.0811]
[1741418066732,0.93312,2143.5,2143.4,3.2078]
[1741418066920,0.93312,2143.5,2143.4,3.2878]
[1741418067124,0.93312,2143.5,2143.4,3.2078]
[1741418067328,2.33295,2143.4,2142.9,22.8832]
[1741418067528,3.57935,2143.4,2142.9,23.3132]
[1741418067824,0.93334,2143.1,2142.9,4.2722]
[1741418068037,0.93334,2143.1,2142.9,4.9046]
[1741418068221,0.93325,2143.2,2142.9,4.9046]
[1741418068427,0.6126,2143.3,2142.9,4.9046]
[1741418068929,0.93331,2143.1,2142.9,5.83797]
[1741418071140,0.93328,2143.2,2142.9,5.83795]
[1741418071335,0.9333,2143.1,2142.9,5.83795]
[1741418077434,0.6126,2143.3,2142.9,4.2722]
[1741418077435,0.93334,2143.0,2142.9,4.2722]
[1741418077633,1.58514,2143.0,2142.9,3.6378]
[1741418079637,1.58514,2143.0,2142.9,4.57118]
[1741418080039,1.58514,2143.0,2142.9,3.6378]
[1741418080944,1.58514,2143.0,2142.9,0.43]
[1741418083346,0.93338,2142.9,2142.8,3.21479676]
[1741418083648,2.20588,2142.9,2142.8,3.21479676]
[1741418085745,1.58538,2142.9,2142.8,3.21479676]
[1741418086342,1.58538,2142.9,2142.8,0.00699676]
[1741418088550,2.6578,2143.0,2142.8,0.00699676]
[1741418088845,0.93338,2142.9,2142.8,0.00699676]
[1741418089350,1.58517,2143.0,2142.8,0.94041676]
[1741418089545,0.93338,2142.9,2142.8,0.00699676]
[1741418090049,0.6518,2143.0,2142.8,0.94040676]
[1741418090244,1.58517,2143.0,2142.8,4.14820676]
[1741418090450,1.58517,2143.0,2142.9,0.662]
[1741418093052,1.58517,2143.0,2142.9,1.3093]
[1741418093248,0.93337,2143.0,2142.9,1.3093]
[1741418093444,0.6136,2143.2,2142.9,1.3093]
[1741418093648,2.924,2143.4,2142.9,1.3593]
[1741418093955,2.29657513,2143.8,2143.1,3.2078]
[1741418094156,0.93315,2143.5,2143.3,0.9332]
[1741418094348,2.006,2143.7,2143.2,0.6707]
[1741418094657,0.93318,2143.4,2143.3,0.6473]
[1741418095551,1.9212,2143.8,2143.3,0.6573]
[1741418095849,0.93309,2143.6,2143.4,1.56945]
[1741418097446,2.93907,2143.7,2143.5,0.93311]
[1741418097653,2.93907,2143.7,2143.4,0.6363]
[1741418097855,0.93308,2143.6,2143.4,1.56944]
[1741418098655,2.006,2143.7,2143.4,0.6363]
[1741418099046,2.93904,2143.7,2143.5,0.93312]
[1741418099454,2.93904,2143.7,2143.6,0.6165]
[1741418101653,2.006,2143.7,2143.6,1.54958]
[1741418103764,1.54662,2143.8,2143.6,1.54958]
[1741418104360,0.00699676,2143.9,2143.6,0.6465]
[1741418104560,0.93997676,2143.9,2143.7,0.93303]
[1741418104760,0.93299,2143.8,2143.6,1.54954]
[1741418105066,0.93299,2143.8,2143.6,1.57954]
[1741418105367,0.93302,2143.8,2143.6,1.57955]
[1741418105571,0.93304,2143.7,2143.6,0.6465]
[1741418105768,0.6661,2143.8,2143.4,3.8441]
[1741418105969,1.5927,2143.6,2143.4,5.55516]
[1741418107466,0.6596,2143.6,2143.4,4.622]
[1741418108065,0.6596,2143.6,2143.5,0.93312]
[1741418108268,1.54926,2143.7,2143.5,0.97312]
[1741418108463,0.93306,2143.7,2143.5,0.97312]
[1741418108663,0.93299,2143.8,2143.6,0.93308]
[1741418108864,0.66379676,2143.9,2143.7,0.6498]
[1741418109160,1.59676676,2143.9,2143.8,0.6175]
[1741418111466,0.93996676,2143.9,2143.8,0.6175]
[1741418113274,0.00699676,2143.9,2143.8,1.55049]
[1741418113460,0.00699676,2143.9,2143.8,1.256]
[1741418113664,0.93994676,2143.9,2143.8,1.256]
[1741418114769,0.00699676,2143.9,2143.8,2.18899]
[1741418115072,0.00699676,2143.9,2143.8,5.39679]
[1741418116466,0.00699676,2143.9,2143.8,4.4638]
[1741418117069,0.00699676,2143.9,2143.8,5.39679]
[1741418118580,0.93994676,2143.9,2143.8,4.4638]
[1741418118970,0.00699676,2143.9,2143.8,4.4638]
[1741418119170,0.93994676,2143.9,2143.8,4.4638]
[1741418119378,0.93994676,2143.9,2143.8,3.8253]
[1741418126180,0.93994676,2143.9,2143.8,3.2078]
[1741418126477,0.93308,2143.6,2143.5,3.2078]
[1741418126682,0.93324,2143.3,2143.2,3.2078]
[1741418126985,0.93318,2143.4,2143.2,4.25104]
[1741418127183,0.6422,2143.5,2143.2,3.3178]
[1741418127380,1.57534,2143.5,2143.3,1.53999]
[1741418127882,2.14659,2143.8,2143.6,0.93305]
[1741418128090,1.53949,2143.8,2143.7,0.6536]
[1741418128296,0.93308,2143.6,2143.5,3.2078]
[1741418128490,0.6065,2143.8,2143.5,3.9214]
[1741418128688,0.93308,2143.6,2143.5,3.9214]
[1741418130198,0.93308,2143.6,2143.5,3.2078]
[1741418130393,0.93312,2143.5,2143.4,0.6152]
[1741418130699,0.93312,2143.5,2143.4,1.2688]
[1741418132294,0.93321,2143.3,2143.2,3.2078]
[1741418132495,0.93321,2143.3,2143.2,3.3078]
[1741418134701,1.59538,2143.4,2143.2,4.89463]
[1741418135107,0.93321,2143.3,2143.2,3.9614]
[1741418135701,1.5954,2143.4,2143.2,4.89465]
[1741418136008,0.93321,2143.3,2143.2,3.9614]
[1741418138702,1.56371,2143.3,2143.2,0.1]
[1741418139006,0.9333,2143.1,2143.0,0.6615]
[1741418139206,0.9333,2143.1,2143.0,0.6715]
[1741418139703,0.6622,2143.4,2143.0,0.6715]
[1741418139906,0.93322,2143.3,2143.1,4.76617]
[1741418140110,0.93322,2143.3,2143.1,4.82617]
[1741418140499,0.93325,2143.2,2143.1,3.8929]
[1741418141107,0.93324,2143.3,2143.1,4.82618]
[1741418141609,1.9271,2143.4,2143.1,3.8929]
[1741418142209,0.93325,2143.2,2143.1,3.8929]
[1741418142512,1.9271,2143.4,2143.1,3.8929]
[1741418142717,0.93323,2143.3,2143.1,4.82618]
[1741418143415,0.93321,2143.3,2143.1,3.8929]
[1741418144305,0.93321,2143.3,2143.1,4.82619]
[1741418145217,1.2685,2143.4,2143.1,3.8929]
[1741418145417,0.93325,2143.2,2143.1,3.8929]
[1741418145709,0.93325,2143.2,2143.1,4.8262]
[1741418146300,0.93325,2143.3,2143.1,4.8262]
[1741418146506,0.93324,2143.3,2143.1,4.8262]
[1741418146907,1.2685,2143.4,2143.2,0.93324]
[1741418146908,2.20169,2143.4,2143.2,0.93324]
[1741418147113,2.005,2143.6,2143.1,3.8329]
[1741418147308,0.93311,2143.6,2143.4,0.93316]
[1741418147508,1.8939,2143.8,2143.5,1.8685]
[1741418147710,1.2718,2143.8,2143.5,1.8685]
[1741418147916,0.93996676,2143.9,2143.5,1.8785]
[1741418148209,0.00699676,2143.9,2143.8,0.93299]
[1741418148613,0.00699676,2143.9,2143.8,1.54519]
[1741418149015,0.93994676,2143.9,2143.8,0.6122]
[1741418149212,0.00699676,2143.9,2143.8,0.6122]
[1741418149422,0.00699676,2143.9,2143.8,1.54519]
[1741418150809,0.00699676,2143.9,2143.8,0.6122]
[1741418151018,0.93994676,2143.9,2143.8,0.6122]
[1741418151715,0.00699676,2143.9,2143.8,0.6122]
[1741418152018,0.00699676,2143.9,2143.8,1.54519]
[1741418154609,0.00699676,2143.9,2143.8,0.6122]
[1741418154610,0.93994676,2143.9,2143.8,0.6122]
[1741418154818,0.00699676,2143.9,2143.8,0.6122]
[1741418155211,0.00699676,2143.9,2143.8,1.54519]
[1741418155606,0.93286,2144.2,2143.8,0.6322]
[1741418155821,0.93286,2144.2,2143.9,1.2705]
[1741418156019,0.93286,2144.2,2144.0,0.93291]
[1741418156220,0.93286,2144.2,2144.1,0.6665]
[1741418163723,1.56234676,2144.4,2144.1,0.6665]
[1741418163929,0.62959676,2144.4,2144.1,0.6665]
[1741418164228,0.93282,2144.2,2144.1,1.59934]
[1741418164520,0.62959676,2144.4,2144.1,0.6665]
[1741418164721,0.93281,2144.3,2144.1,1.59935]
[1741418164928,0.93282,2144.2,2144.1,1.59935]
[1741418165122,0.93282,2144.2,2144.1,0.6665]
[1741418165826,0.93286,2144.1,2144.0,3.2078]
[1741418166024,0.93291,2144.0,2143.9,0.00699676]
[1741418166227,4.4662,2144.0,2143.4,3.2078]
[1741418166531,0.93312,2143.5,2143.4,3.2078]
[1741418166718,0.93321,2143.3,2143.2,1.9081]
[1741418166919,0.93321,2143.3,2143.2,1.3964]
[1741418167119,0.6165,2143.4,2143.0,3.2078]
[1741418167325,0.9333,2143.1,2143.0,3.44479676]
[1741418167631,0.9333,2143.1,2143.0,0.00699676]
[1741418178147,3.21479676,2143.3,2143.2,0.93325]
[1741418178346,0.00699676,2143.3,2143.2,0.96325]
[1741418178645,2.005,2143.8,2143.2,0.03]
[1741418178947,0.93307,2143.7,2143.4,3.2078]
[1741418179141,2.005,2143.8,2143.5,0.643]
[1741418179344,2.005,2143.8,2143.5,0.663]
[1741418179640,0.93308,2143.6,2143.5,0.663]
[1741418179841,2.005,2143.8,2143.5,0.663]
[1741418180043,0.93304,2143.7,2143.5,0.663]
[1741418180244,2.005,2143.8,2143.5,0.663]
[1741418180644,2.93802,2143.8,2143.5,1.5961]
[1741418180845,0.93308,2143.6,2143.5,0.663]
[1741418182141,0.00699676,2143.9,2143.5,0.663]
[1741418182346,0.00699676,2143.9,2143.4,3.2078]
[1741418182347,5.21979676,2143.9,2143.4,3.2078]
[1741418182539,0.93312,2143.5,2143.4,3.2078]
[1741418182944,0.93312,2143.5,2143.1,1.2536]
[1741418182945,0.93322,2143.3,2143.1,2.18689]
[1741418183146,0.6645,2143.7,2143.1,1.3936]
[1741418183345,0.6645,2143.7,2143.1,2.32688]
[1741418183346,0.93323,2143.3,2143.1,2.32688]
[1741418183648,0.93325,2143.2,2143.1,1.3936]
[1741418183849,0.93323,2143.3,2143.1,1.3936]
[1741418184049,2.99716,2143.7,2143.1,1.3936]
[1741418184050,0.93325,2143.2,2143.1,1.3936]
[1741418184250,0.93324,2143.3,2143.1,1.3936]
[1741418184646,0.93325,2143.2,2143.1,1.3936]
[1741418186141,0.93323,2143.3,2143.1,2.3269]
[1741418186342,0.6645,2143.7,2143.2,0.93323]
[1741418186544,0.6645,2143.7,2143.3,3.2078]
[1741418187342,0.93317,2143.5,2143.3,3.2078]
[1741418187947,0.6645,2143.7,2143.3,3.2078]
[1741418188550,0.93317,2143.4,2143.3,3.2078]
[1741418190346,2.99718,2143.7,2143.2,3.8169]
[1741418190550,0.93321,2143.3,2143.2,3.8669]
[1741418200151,0.93321,2143.3,2143.2,0.05]
[1741418200359,1.3013,2143.4,2142.6,3.2078]
[1741418200654,0.93347,2142.7,2142.6,3.2078]
[1741418204658,0.93352,2142.6,2142.5,0.6637]
[1741418208459,0.93348,2142.7,2142.5,1.62723]
[1741418208657,0.93348,2142.7,2142.6,3.2078]
[1741418209451,0.93328,2143.2,2142.7,0.93346]
[1741418209658,2.33261,2143.7,2143.0,3.2078]
[1741418209659,0.9333,2143.1,2143.0,3.2078]
[1741418209852,0.9333,2143.1,2143.0,3.2778]
[1741418211052,0.00699676,2143.3,2143.0,3.2778]
[1741418211256,0.00699676,2143.3,2143.2,0.93325]
[1741418211853,0.00699676,2143.3,2143.2,1.54885]
[1741418213260,0.00699676,2143.3,2143.2,1.55885]
[1741418213960,0.00699676,2143.3,2143.2,0.6256]
[1741418214161,0.94020676,2143.3,2143.2,0.6256]
[1741418214354,0.00699676,2143.3,2143.1,0.6454]
[1741418214551,0.93325,2143.2,2143.1,0.05]
[1741418214755,1.56875,2143.2,2143.1,0.05]
[1741418216964,0.94023676,2143.3,2143.1,0.9833]
[1741418217163,0.94023676,2143.3,2143.1,1.6309]
[1741418220363,0.00699676,2143.3,2143.2,0.93325]
[1741418220564,0.00699676,2143.3,2143.2,1.01325]
[1741418224772,1.54512,2143.8,2143.2,0.08]
[1741418224966,1.54512,2143.8,2143.6,0.93306]
[1741418225166,0.6121,2143.8,2143.7,0.6636]
[1741418225370,0.93297,2143.9,2143.7,1.59664]
[1741418225565,0.93299,2143.8,2143.7,0.6636]
[1741418225970,0.93308,2143.6,2143.5,3.21479676]
[1741418226271,0.93308,2143.6,2143.5,0.00699676]
[1741418229270,0.93307,2143.7,2143.5,0.94011676]
[1741418229473,0.93308,2143.6,2143.5,0.00699676]
[1741418229673,0.93307,2143.7,2143.5,0.94011676]
[1741418230378,0.93306,2143.7,2143.5,0.94010676]
[1741418230573,0.93308,2143.7,2143.5,0.00699676]
[1741418230774,0.93308,2143.6,2143.5,0.00699676]
[1741418231480,0.93306,2143.7,2143.5,0.94010676]
[1741418231879,0.6648,2143.9,2143.7,0.93301]
[1741418232080,0.93295,2143.9,2143.6,1.60274]
[1741418232269,0.61909676,2144.0,2143.6,0.6697]
[1741418232465,0.61909676,2144.0,2143.9,0.93295]
[1741418232670,0.00699676,2144.0,2143.9,0.93295]
[1741418232973,0.00699676,2144.0,2143.9,1.57655]
[1741418233276,0.00699676,2144.0,2143.9,1.62655]
[1741418234381,0.00699676,2144.0,2143.9,2.26255]
[1741418235583,0.00699676,2144.0,2143.9,0.6436]
[1741418236082,0.00699676,2144.0,2143.9,1.57655]
[1741418236581,0.00699676,2144.0,2143.9,0.93295]
[1741418237578,0.00699676,2144.0,2143.9,0.94295]
[1741418243182,0.605,2144.4,2143.9,4.01]
[1741418243387,0.605,2144.4,2144.3,3.2078]
[1741418243585,0.605,2144.4,2144.3,4.14057]
[1741418243780,0.605,2144.4,2144.3,3.2078]
[1741418244080,0.605,2144.4,2144.3,4.14057]
[1741418249080,0.00699676,2144.6,2144.3,3.2078]
[1741418249281,0.93966676,2144.6,2144.4,1.58172]
[1741418249486,0.93966676,2144.6,2144.4,2.20782]
[1741418249981,0.00699676,2144.6,2144.4,1.2751]
[1741418250182,0.00699676,2144.6,2144.5,0.93269]
[1741418250390,0.93963676,2144.6,2144.4,2.2078]
[1741418250586,0.00699676,2144.6,2144.4,1.2751]
[1741418250888,0.93966676,2144.6,2144.4,2.20781]
[1741418251886,0.93269,2144.5,2144.4,1.2751]
[1741418252086,0.93965676,2144.6,2144.4,2.2078]
[1741418253689,0.93965676,2144.6,2144.5,0.93269]
[1741418253690,0.00699676,2144.6,2144.5,0.93269]
[1741418253993,0.00699676,2144.6,2144.5,1.66789]
[1741418255390,3.2078,2144.9,2144.8,0.93256]
[1741418255698,3.2078,2144.9,2144.7,0.9326]
[1741418255998,3.2078,2144.9,2144.8,0.93256]
[1741418256187,3.2078,2144.9,2144.7,0.606]
[1741418256500,3.2078,2144.9,2144.8,0.93256]
[1741418256690,4.14032,2144.9,2144.7,1.53858]
[1741418256888,0.93256,2144.8,2144.7,0.626]
[1741418257487,3.2078,2144.9,2144.7,0.626]
[1741418257692,0.9326,2144.7,2144.6,3.21479676]
[1741418258490,4.0,2144.7,2143.9,3.2078]
[1741418258701,0.93288,2144.1,2143.9,4.38072]
[1741418258999,5.2128,2144.5,2143.9,4.38072]
[1741418259196,5.2128,2144.5,2143.9,3.4478]
[1741418259491,0.93276,2144.4,2144.2,0.9328]
[1741418259695,0.93975676,2144.4,2144.2,0.9328]
[1741418260398,0.93975676,2144.4,2144.1,1.59554]
[1741418260591,0.93282,2144.2,2144.1,0.7627]
[1741418260797,0.93279,2144.3,2144.1,0.7627]
[1741418261099,0.93974676,2144.4,2144.2,0.93282]
[1741418261395,0.93974676,2144.4,2144.2,0.94282]
[1741418261697,0.93974676,2144.4,2144.2,0.01]
[1741418262195,0.00699676,2144.4,2144.3,0.93277]
[1741418262390,0.00699676,2144.4,2144.3,1.54717]
[1741418262697,0.00699676,2144.4,2144.3,0.6144]
[1741418263390,0.00699676,2144.4,2144.3,0.6544]
[1741418263792,0.00699676,2144.4,2144.3,1.58717]
[1741418271805,0.00699676,2144.4,2144.3,0.6544]
[1741418272006,0.93972676,2144.4,2144.3,0.6544]
[1741418273701,0.00699676,2144.4,2144.3,0.6544]
[1741418274803,0.00699676,2144.4,2144.3,1.58717]
[1741418275707,0.93972676,2144.4,2144.3,0.6544]
[1741418276606,0.00699676,2144.4,2144.3,0.6544]
[1741418277404,0.93972676,2144.4,2144.3,0.6544]
[1741418280010,0.00699676,2144.4,2144.3,0.6544]
[1741418280412,0.93972676,2144.4,2144.3,0.6544]
[1741418284211,0.93972676,2144.4,2144.3,0.04]
[1741418284412,0.93277,2144.3,2144.2,3.2078]
[1741418284712,0.93277,2144.3,2144.2,4.19062]
[1741418286219,0.93277,2144.3,2144.2,3.2578]
[1741418286915,0.93976676,2144.4,2144.2,4.19061]
[1741418287113,0.00699676,2144.4,2144.3,0.93277]
[1741418288122,0.00699676,2144.4,2144.2,3.2078]
[1741418288314,0.00699676,2144.4,2144.3,0.93277]
[1741418288516,0.00699676,2144.4,2144.3,1.01277]
[1741418289115,3.2078,2144.8,2144.7,0.9326]
[1741418289319,3.2078,2144.8,2144.7,0.9426]
[1741418289516,3.2078,2144.8,2144.7,0.01]
[1741418289721,4.1404,2144.8,2144.5,0.624]
[1741418290022,3.2078,2144.8,2144.5,1.70665]
[1741418290222,3.2078,2144.8,2144.7,0.9326]
[1741418290514,3.2078,2144.8,2144.7,0.9426]
[1741418290722,0.9324,2145.2,2144.9,0.93251]
[1741418291219,5.8822,2145.3,2145.0,0.6303]
[1741418291423,5.8822,2145.3,2145.1,0.6051]
[1741418291720,0.93238,2145.2,2145.1,0.6051]
[1741418292624,3.8792,2145.3,2145.1,1.5375]
[1741418292823,3.2078,2145.3,2145.2,0.93238]
[1741418293514,3.2078,2145.3,2145.1,1.53749]
[1741418293821,3.2078,2145.3,2145.2,0.93238]
[1741418294023,3.2078,2145.3,2145.2,1.56788]
[1741418295320,3.2078,2145.3,2145.2,0.6355]
[1741418295722,3.2078,2145.3,2145.2,1.56788]
[1741418295917,3.2078,2145.3,2145.2,0.6355]
[1741418296315,3.2078,2145.6,2145.2,0.6355]
[1741418296721,0.93227,2145.5,2145.2,1.57485676]
[1741418298327,0.93227,2145.5,2145.2,1.57486676]
[1741418298715,0.93227,2145.5,2145.2,0.64249676]
[1741418298926,0.93227,2145.5,2145.3,0.93233]
[1741418300230,3.2078,2146.2,2145.4,3.2078]
[1741418300421,0.6574,2146.1,2145.5,2.98074]
[1741418300616,0.6574,2146.1,2145.9,0.93206]
[1741418300927,4.13979,2146.2,2145.8,0.93208]
[1741418301133,4.13978,2146.2,2145.9,2.21827]
[1741418301427,3.2078,2146.2,2145.7,3.2078]
[1741418301621,0.6574,2146.1,2145.7,0.1]
[1741418302629,0.93212,2145.8,2145.7,0.1]
[1741418303130,0.93212,2145.8,2145.5,1.2697]
[1741418303326,0.93225,2145.6,2145.5,0.08]
[1741418303629,0.93225,2145.5,2145.4,3.2078]
[1741418304930,0.93224,2145.6,2145.4,4.1401]
[1741418305130,0.93221,2145.6,2145.4,4.14008]
[1741418305326,1.5412,2145.7,2145.4,3.2078]
[1741418305530,0.93221,2145.6,2145.4,4.14007]
[1741418306225,0.93221,2145.6,2145.4,3.2078]
[1741418307131,0.609,2145.7,2145.4,3.2078]
[1741418307335,0.93225,2145.5,2145.4,3.2578]
[1741418307927,0.93224,2145.6,2145.4,3.2578]
[1741418308432,0.93225,2145.5,2145.4,3.2578]
[1741418309133,0.793,2145.7,2145.4,3.2578]
[1741418309334,0.93225,2145.6,2145.4,3.2578]
[1741418309535,0.6285,2145.8,2145.5,0.93224]
[1741418309734,0.93218,2145.7,2145.6,0.6385]
[1741418313940,0.93218,2145.7,2145.6,1.57071]
[1741418314238,1.56065,2145.8,2145.6,1.57067]
[1741418314541,4.13991,2145.9,2145.7,0.93215]
[1741418314731,4.13991,2145.9,2145.7,2.20465]
[1741418314933,0.93211,2145.9,2145.7,2.20465]
[1741418315339,0.93212,2145.9,2145.7,2.20467]
[1741418315644,0.93212,2145.8,2145.7,1.2725]
[1741418316136,0.6412,2146.1,2145.7,1.3125]